[Event "*** Titled Tuesday Blitz"]
[Site "Chess.com"]
[Date "2021.02.09"]
[Round "1"]
[White "rasmussvane"]
[Black "jerry_77"]
[Result "1-0"]
[WhiteElo "2881"]
[BlackElo "2447"]
[TimeControl "180+1"]
[EndTime "10:06:43 PST"]
[Termination "rasmussvane won by resignation"]

1. Nf3 {[%clk 0:03:00.9]} 1... Nf6 {[%clk 0:02:59.9]} 2. g3 {[%clk 0:03:00.6]}
2... e6 {[%clk 0:03:00.4]} 3. Bg2 {[%clk 0:03:00.8]} 3... d5 {[%clk 0:02:59.7]}
4. O-O {[%clk 0:03:01.3]} 4... c5 {[%clk 0:02:58.3]} 5. c4 {[%clk 0:02:55.7]}
5... d4 {[%clk 0:02:57.7]} 6. e3 {[%clk 0:02:56.1]} 6... Nc6 {[%clk 0:02:58.6]}
7. exd4 {[%clk 0:02:56.7]} 7... cxd4 {[%clk 0:02:59.3]} 8. d3 {[%clk 0:02:57.3]}
8... Bc5 {[%clk 0:02:58.5]} 9. Bg5 {[%clk 0:02:55]} 9... O-O {[%clk 0:02:58.2]}
10. Nbd2 {[%clk 0:02:51.8]} 10... h6 {[%clk 0:02:58.3]} 11. Bxf6 {[%clk
0:02:51.8]} 11... Qxf6 {[%clk 0:02:59.2]} 12. Ne4 {[%clk 0:02:52.4]} 12... Qe7
{[%clk 0:02:59.9]} 13. Nxc5 {[%clk 0:02:52.9]} 13... Qxc5 {[%clk 0:03:00.8]} 14.
a3 {[%clk 0:02:53.6]} 14... a5 {[%clk 0:03:00.9]} 15. Re1 {[%clk 0:02:52.5]}
15... e5 {[%clk 0:03:00.6]} 16. Nd2 {[%clk 0:02:48.9]} 16... Bf5 {[%clk
0:02:57.4]} 17. Qb3 {[%clk 0:02:45.1]} 17... Ra6 {[%clk 0:02:32.4]} 18. Qb5
{[%clk 0:02:32.1]} 18... Qd6 {[%clk 0:02:19.1]} 19. Qxb7 {[%clk 0:02:26.3]}
19... Ne7 {[%clk 0:01:45]} 20. c5 {[%clk 0:02:16.7]} 20... Qf6 {[%clk
0:01:37.7]} 21. Ne4 {[%clk 0:02:04.9]} 21... Bxe4 {[%clk 0:01:34.2]} 22. Bxe4
{[%clk 0:01:55.9]} 22... Re6 {[%clk 0:01:24.8]} 23. b4 {[%clk 0:01:52.3]} 23...
axb4 {[%clk 0:01:20.1]} 24. axb4 {[%clk 0:01:53.2]} 24... Qg5 {[%clk 0:01:06.4]}
25. Ra8 {[%clk 0:01:44.7]} 25... g6 {[%clk 0:00:57.1]} 26. Rxf8+ {[%clk
0:01:43.2]} 26... Kxf8 {[%clk 0:00:58]} 27. c6 {[%clk 0:01:43.4]} 27... Qd2
{[%clk 0:00:57.7]} 28. Rf1 {[%clk 0:01:33.8]} 28... f5 {[%clk 0:00:48.9]} 29.
Qd7 {[%clk 0:01:27.7]} 29... Qa2 {[%clk 0:00:39.3]} 30. Bg2 {[%clk 0:01:18.2]}
30... e4 {[%clk 0:00:39.6]} 31. c7 {[%clk 0:01:18.1]} 31... Qa6 {[%clk
0:00:24.9]} 32. b5 {[%clk 0:01:16.1]} 32... Qc8 {[%clk 0:00:24.8]} 33. Qd8+
{[%clk 0:00:56.3]} 33... Kf7 {[%clk 0:00:23.9]} 34. dxe4 {[%clk 0:00:56.9]}
34... d3 {[%clk 0:00:18.6]} 35. exf5 {[%clk 0:00:55.4]} 35... gxf5 {[%clk
0:00:18.4]} 36. Rd1 {[%clk 0:00:51.6]} 36... d2 {[%clk 0:00:16.7]} 37. Rxd2
{[%clk 0:00:47.6]} 37... Re1+ {[%clk 0:00:16.7]} 38. Bf1 {[%clk 0:00:47.9]}
38... Qb7 {[%clk 0:00:17.2]} 39. Rd1 {[%clk 0:00:43.2]} 39... Rxf1+ {[%clk
0:00:16.3]} 40. Rxf1 {[%clk 0:00:42.2]} 1-0

[Event "*** Titled Tuesday Blitz"]
[Site "Chess.com"]
[Date "2021.02.09"]
[Round "1"]
[White "kobemagic"]
[Black "Jungle_Jaguar"]
[Result "0-1"]
[WhiteElo "2322"]
[BlackElo "2625"]
[TimeControl "180+1"]
[EndTime "10:06:43 PST"]
[Termination "Jungle_Jaguar won by resignation"]

1. c4 {[%clk 0:02:59.9]} 1... Nf6 {[%clk 0:02:51.9]} 2. g3 {[%clk 0:02:59.4]}
2... g6 {[%clk 0:02:51.9]} 3. Bg2 {[%clk 0:02:58.9]} 3... Bg7 {[%clk 0:02:47.2]}
4. Nc3 {[%clk 0:02:59.1]} 4... O-O {[%clk 0:02:47.5]} 5. Nf3 {[%clk 0:02:58.9]}
5... d6 {[%clk 0:02:48.1]} 6. O-O {[%clk 0:02:58.5]} 6... Nc6 {[%clk 0:02:48.8]}
7. d3 {[%clk 0:02:57.6]} 7... Nh5 {[%clk 0:02:46.6]} 8. Bd2 {[%clk 0:02:54.4]}
8... f5 {[%clk 0:02:46.3]} 9. b4 {[%clk 0:02:52.6]} 9... Nxb4 {[%clk 0:02:43.4]}
10. Rb1 {[%clk 0:02:48.6]} 10... Nc6 {[%clk 0:02:41]} 11. Qc1 {[%clk 0:02:40.3]}
11... f4 {[%clk 0:02:36]} 12. Nd5 {[%clk 0:02:36.4]} 12... fxg3 {[%clk
0:02:25.5]} 13. hxg3 {[%clk 0:02:34.9]} 13... e6 {[%clk 0:02:22.7]} 14. Nf4
{[%clk 0:02:31.6]} 14... Nxf4 {[%clk 0:02:07]} 15. Bxf4 {[%clk 0:02:30.3]} 15...
e5 {[%clk 0:02:07.6]} 16. Bh6 {[%clk 0:02:26.2]} 16... Qe7 {[%clk 0:02:05.7]}
17. Bxg7 {[%clk 0:02:24.5]} 17... Qxg7 {[%clk 0:02:05.9]} 18. Qe3 {[%clk
0:02:11.4]} 18... Rb8 {[%clk 0:01:57.2]} 19. Ng5 {[%clk 0:02:09.5]} 19... Nd4
{[%clk 0:01:56.9]} 20. Qd2 {[%clk 0:01:57.9]} 20... Bg4 {[%clk 0:01:42.4]} 21.
Rfe1 {[%clk 0:01:48.2]} 21... h6 {[%clk 0:01:36.7]} 22. Ne4 {[%clk 0:01:42.6]}
22... b6 {[%clk 0:01:30.2]} 23. Nc3 {[%clk 0:01:37.9]} 23... Kh7 {[%clk
0:01:29.5]} 24. Nb5 {[%clk 0:01:28.1]} 24... a6 {[%clk 0:01:28.3]} 25. Nxd4
{[%clk 0:01:27]} 25... exd4 {[%clk 0:01:29.2]} 26. e4 {[%clk 0:01:25.3]} 26...
dxe3 {[%clk 0:01:27.4]} 27. Rxe3 {[%clk 0:01:24.6]} 27... Rbe8 {[%clk
0:01:27.1]} 28. Rbe1 {[%clk 0:01:23.6]} 28... Qf7 {[%clk 0:01:22.7]} 29. Rxe8
{[%clk 0:01:16.7]} 29... Rxe8 {[%clk 0:01:23.5]} 30. Rxe8 {[%clk 0:01:16.5]}
30... Qxe8 {[%clk 0:01:23.3]} 31. Qf4 {[%clk 0:01:15]} 31... Bf5 {[%clk
0:01:19.3]} 32. d4 {[%clk 0:01:10.8]} 32... h5 {[%clk 0:01:05.1]} 33. Bd5 {[%clk
0:01:05.5]} 33... Qe7 {[%clk 0:01:02.9]} 34. Qe3 {[%clk 0:01:04]} 34... Qxe3
{[%clk 0:01:01.8]} 35. fxe3 {[%clk 0:01:03.5]} 35... Kg7 {[%clk 0:01:00.4]} 36.
a3 {[%clk 0:00:59.4]} 36... Kf6 {[%clk 0:01:00.2]} 37. Kf2 {[%clk 0:00:57.2]}
37... Be6 {[%clk 0:00:59.8]} 38. Bxe6 {[%clk 0:00:52.7]} 38... Kxe6 {[%clk
0:01:00.1]} 39. Kf3 {[%clk 0:00:52]} 39... b5 {[%clk 0:00:55.6]} 40. cxb5 {[%clk
0:00:50.3]} 40... axb5 {[%clk 0:00:56.1]} 41. e4 {[%clk 0:00:47.9]} 41... c5
{[%clk 0:00:55.6]} 42. Ke3 {[%clk 0:00:46.8]} 42... g5 {[%clk 0:00:52.9]} 43.
Kd3 {[%clk 0:00:41.5]} 43... c4+ {[%clk 0:00:48.2]} 44. Kc3 {[%clk 0:00:36.4]}
44... h4 {[%clk 0:00:48.3]} 0-1

[Event "*** Titled Tuesday Blitz"]
[Site "Chess.com"]
[Date "2021.02.09"]
[Round "1"]
[White "oneshot007"]
[Black "beto-betun"]
[Result "1-0"]
[WhiteElo "2511"]
[BlackElo "2185"]
[TimeControl "180+1"]
[EndTime "10:06:43 PST"]
[Termination "oneshot007 won by resignation"]

1. e4 {[%clk 0:03:00.9]} 1... c5 {[%clk 0:03:00.1]} 2. Nf3 {[%clk 0:03:00.7]}
2... d6 {[%clk 0:03:00.4]} 3. d4 {[%clk 0:03:01]} 3... cxd4 {[%clk 0:03:00.8]}
4. Nxd4 {[%clk 0:03:01.9]} 4... Nf6 {[%clk 0:03:01.2]} 5. Nc3 {[%clk 0:03:02.6]}
5... a6 {[%clk 0:03:01.6]} 6. Be3 {[%clk 0:03:02.8]} 6... e5 {[%clk 0:03:01.8]}
7. Nf3 {[%clk 0:03:03.1]} 7... Be6 {[%clk 0:03:02]} 8. Ng5 {[%clk 0:02:59.2]}
8... Bd7 {[%clk 0:02:59.4]} 9. Bc4 {[%clk 0:02:54.6]} 9... Be6 {[%clk
0:02:43.4]} 10. Bxe6 {[%clk 0:02:44.7]} 10... fxe6 {[%clk 0:02:44.3]} 11. Nxe6
{[%clk 0:02:45.2]} 11... Qe7 {[%clk 0:02:43.4]} 12. Nxf8 {[%clk 0:02:45.5]}
12... Rxf8 {[%clk 0:02:44.1]} 13. O-O {[%clk 0:02:44.8]} 13... Nc6 {[%clk
0:02:41.3]} 14. Nd5 {[%clk 0:02:27.9]} 14... Nxd5 {[%clk 0:02:40.1]} 15. exd5
{[%clk 0:02:28.8]} 15... Nd8 {[%clk 0:02:40.3]} 16. c4 {[%clk 0:02:19.8]} 16...
Kf7 {[%clk 0:02:36.5]} 17. b4 {[%clk 0:02:09.1]} 17... Kg8 {[%clk 0:02:36.5]}
18. c5 {[%clk 0:02:09.4]} 18... Qf6 {[%clk 0:02:22.2]} 19. Rc1 {[%clk
0:02:00.3]} 19... Nf7 {[%clk 0:02:18.1]} 20. c6 {[%clk 0:01:59.9]} 20... b5
{[%clk 0:02:14.9]} 21. a4 {[%clk 0:01:55.6]} 21... Rfc8 {[%clk 0:02:10.7]} 22.
axb5 {[%clk 0:01:55.2]} 22... axb5 {[%clk 0:02:10.9]} 23. Qd3 {[%clk 0:01:55.4]}
23... Rab8 {[%clk 0:02:00.4]} 24. Ba7 {[%clk 0:01:54.8]} 24... Ra8 {[%clk
0:01:59.3]} 25. Be3 {[%clk 0:01:54.9]} 25... Rab8 {[%clk 0:01:59]} 26. Ra1
{[%clk 0:01:53.9]} 26... Ng5 {[%clk 0:01:52.4]} 27. Bxg5 {[%clk 0:01:43.9]}
27... Qxg5 {[%clk 0:01:52.3]} 28. Ra7 {[%clk 0:01:44.5]} 28... h5 {[%clk
0:01:46.9]} 29. Qh3 {[%clk 0:01:28.6]} 29... Re8 {[%clk 0:01:33.5]} 30. Rfa1
{[%clk 0:01:00.7]} 30... e4 {[%clk 0:01:29.8]} 31. Qe3 {[%clk 0:00:58.6]} 31...
Qg4 {[%clk 0:01:24]} 32. h3 {[%clk 0:00:48.6]} 32... Qg6 {[%clk 0:01:20.8]} 33.
Rd7 {[%clk 0:00:44.7]} 33... Qf6 {[%clk 0:01:16.1]} 34. Raa7 {[%clk 0:00:42.3]}
34... h4 {[%clk 0:01:07]} 35. Rxg7+ {[%clk 0:00:18.3]} 35... Qxg7 {[%clk
0:01:07.9]} 36. Rxg7+ {[%clk 0:00:18.6]} 36... Kxg7 {[%clk 0:01:08.8]} 37. Qg5+
{[%clk 0:00:19.2]} 37... Kf8 {[%clk 0:01:07.1]} 38. Qf6+ {[%clk 0:00:17.9]}
38... Kg8 {[%clk 0:01:06.7]} 39. Qg6+ {[%clk 0:00:18.4]} 39... Kf8 {[%clk
0:01:06.5]} 40. Qxd6+ {[%clk 0:00:18.4]} 40... Kg8 {[%clk 0:01:06.6]} 41. Qg6+
{[%clk 0:00:18.1]} 41... Kf8 {[%clk 0:01:07.2]} 42. c7 {[%clk 0:00:18.5]} 42...
Ra8 {[%clk 0:01:04.8]} 43. d6 {[%clk 0:00:14.2]} 43... e3 {[%clk 0:01:02.9]} 44.
fxe3 {[%clk 0:00:13.9]} 44... Rxe3 {[%clk 0:01:02]} 45. Qh6+ {[%clk 0:00:14.1]}
45... Ke8 {[%clk 0:01:01.3]} 46. Qxe3+ {[%clk 0:00:15]} 46... Kd7 {[%clk
0:01:00.9]} 47. Qe7+ {[%clk 0:00:15.1]} 47... Kc6 {[%clk 0:01:01.4]} 48. Qe4+
{[%clk 0:00:15.3]} 1-0

[Event "*** Titled Tuesday Blitz"]
[Site "Chess.com"]
[Date "2021.02.09"]
[Round "1"]
[White "AldokhinIvan"]
[Black "esrosenberg"]
[Result "1-0"]
[WhiteElo "2481"]
[BlackElo "2036"]
[TimeControl "180+1"]
[EndTime "10:06:45 PST"]
[Termination "AldokhinIvan won by resignation"]

1. e4 {[%clk 0:02:54.2]} 1... e6 {[%clk 0:03:00.1]} 2. d4 {[%clk 0:02:43.1]}
2... d5 {[%clk 0:03:00]} 3. Nc3 {[%clk 0:02:41.3]} 3... Bb4 {[%clk 0:02:59.9]}
4. Ne2 {[%clk 0:02:39.2]} 4... dxe4 {[%clk 0:02:56.2]} 5. a3 {[%clk 0:02:39.5]}
5... Bxc3+ {[%clk 0:02:55.7]} 6. Nxc3 {[%clk 0:02:40.2]} 6... Nc6 {[%clk
0:02:56.3]} 7. Bb5 {[%clk 0:02:37.2]} 7... Ne7 {[%clk 0:02:56.2]} 8. Nxe4 {[%clk
0:02:35.4]} 8... Qd5 {[%clk 0:02:48.4]} 9. Qd3 {[%clk 0:02:10.6]} 9... Bd7
{[%clk 0:02:18]} 10. Be3 {[%clk 0:02:07.3]} 10... O-O-O {[%clk 0:01:51]} 11.
O-O-O {[%clk 0:02:03.9]} 11... Ne5 {[%clk 0:01:08.3]} 12. Bxd7+ {[%clk
0:01:55.9]} 12... Nxd7 {[%clk 0:01:08.1]} 13. c4 {[%clk 0:01:50.1]} 13... Qc6
{[%clk 0:01:03.9]} 14. Ng5 {[%clk 0:01:23.7]} 14... Ne5 {[%clk 0:00:57.3]} 15.
Qc2 {[%clk 0:01:19.7]} 15... h6 {[%clk 0:00:22.9]} 16. dxe5 {[%clk 0:01:19]}
16... hxg5 {[%clk 0:00:23.1]} 17. Bxg5 {[%clk 0:01:18.8]} 17... Rxd1+ {[%clk
0:00:22.9]} 18. Rxd1 {[%clk 0:01:13.2]} 18... Nf5 {[%clk 0:00:18.9]} 19. g4
{[%clk 0:01:05.2]} 19... Nh4 {[%clk 0:00:15.6]} 20. Qd3 {[%clk 0:01:00.4]} 20...
b6 {[%clk 0:00:14.2]} 21. Bxh4 {[%clk 0:00:59.5]} 21... Rxh4 {[%clk 0:00:13.9]}
22. Qd8+ {[%clk 0:00:59.5]} 22... Kb7 {[%clk 0:00:14.3]} 23. Qxh4 {[%clk
0:00:59.9]} 23... Qxc4+ {[%clk 0:00:14.8]} 24. Kb1 {[%clk 0:01:00.4]} 24... Qe4+
{[%clk 0:00:14.6]} 25. Ka1 {[%clk 0:00:59.8]} 25... Qxe5 {[%clk 0:00:14.5]} 26.
Qg3 {[%clk 0:00:58.3]} 26... Qe2 {[%clk 0:00:13.8]} 27. Rc1 {[%clk 0:00:57.1]}
27... c5 {[%clk 0:00:13.7]} 28. Qf4 {[%clk 0:00:56.8]} 28... f6 {[%clk
0:00:13.2]} 29. f3 {[%clk 0:00:56.2]} 29... e5 {[%clk 0:00:13]} 30. Qe4+ {[%clk
0:00:56.3]} 30... Qxe4 {[%clk 0:00:13.1]} 31. fxe4 {[%clk 0:00:57.2]} 31... Kc6
{[%clk 0:00:13.1]} 32. h4 {[%clk 0:00:57.7]} 32... b5 {[%clk 0:00:13.3]} 33. h5
{[%clk 0:00:57.2]} 33... c4 {[%clk 0:00:13]} 34. Rf1 {[%clk 0:00:57.6]} 34...
Kc5 {[%clk 0:00:12]} 35. h6 {[%clk 0:00:57]} 35... gxh6 {[%clk 0:00:12]} 36.
Rxf6 {[%clk 0:00:57.4]} 36... Kd4 {[%clk 0:00:12.6]} 37. Rxh6 {[%clk 0:00:57.9]}
37... Kxe4 {[%clk 0:00:12.9]} 38. Rf6 {[%clk 0:00:58.6]} 38... Kd5 {[%clk
0:00:10]} 39. g5 {[%clk 0:00:59]} 39... e4 {[%clk 0:00:10.9]} 40. g6 {[%clk
0:00:59.2]} 40... e3 {[%clk 0:00:11.5]} 41. Rf8 {[%clk 0:00:55.1]} 41... e2
{[%clk 0:00:10.1]} 42. Re8 {[%clk 0:00:54.6]} 1-0

[Event "*** Titled Tuesday Blitz"]
[Site "Chess.com"]
[Date "2021.02.09"]
[Round "1"]
[White "publicaccountcze"]
[Black "FontVella8"]
[Result "0-1"]
[WhiteElo "2269"]
[BlackElo "2570"]
[TimeControl "180+1"]
[EndTime "10:06:46 PST"]
[Termination "FontVella8 won by checkmate"]

1. d4 {[%clk 0:03:00.9]} 1... d5 {[%clk 0:02:59.9]} 2. c4 {[%clk 0:03:00.7]}
2... c6 {[%clk 0:03:00.4]} 3. Nc3 {[%clk 0:03:00.7]} 3... Nf6 {[%clk 0:03:00.6]}
4. cxd5 {[%clk 0:03:01.1]} 4... cxd5 {[%clk 0:03:00.5]} 5. Bf4 {[%clk 0:03:01]}
5... Nc6 {[%clk 0:02:59.7]} 6. e3 {[%clk 0:03:01.4]} 6... a6 {[%clk 0:02:57.7]}
7. Bd3 {[%clk 0:03:01.6]} 7... e6 {[%clk 0:02:58]} 8. Nf3 {[%clk 0:03:01.1]}
8... Bd6 {[%clk 0:02:58.2]} 9. Bg3 {[%clk 0:02:54.5]} 9... O-O {[%clk
0:02:57.5]} 10. O-O {[%clk 0:02:51.2]} 10... b5 {[%clk 0:02:57.7]} 11. a3 {[%clk
0:02:48.1]} 11... Bb7 {[%clk 0:02:57.9]} 12. Rc1 {[%clk 0:02:46.7]} 12... Ne7
{[%clk 0:02:57.1]} 13. Ne5 {[%clk 0:02:42.9]} 13... Ne4 {[%clk 0:02:54.5]} 14.
f3 {[%clk 0:02:18.8]} 14... Nxg3 {[%clk 0:02:53.5]} 15. hxg3 {[%clk 0:02:17.4]}
15... f6 {[%clk 0:02:52.9]} 16. Ng4 {[%clk 0:02:09.9]} 16... Bxg3 {[%clk
0:02:50.1]} 17. f4 {[%clk 0:02:04.7]} 17... h5 {[%clk 0:02:34.5]} 18. Nh6+
{[%clk 0:01:42.9]} 18... gxh6 {[%clk 0:02:30]} 19. Qxh5 {[%clk 0:01:41.8]} 19...
Rf7 {[%clk 0:02:28.8]} 20. Qxh6 {[%clk 0:01:38.5]} 20... Qf8 {[%clk 0:02:20.3]}
21. Qh5 {[%clk 0:01:36.4]} 21... Nf5 {[%clk 0:02:17.6]} 22. Bxf5 {[%clk
0:01:28.2]} 22... exf5 {[%clk 0:02:17.8]} 23. Qxf5 {[%clk 0:01:26.9]} 23... Qh6
{[%clk 0:02:17.8]} 24. Qh3 {[%clk 0:01:06.6]} 24... Qxh3 {[%clk 0:02:08.8]} 25.
gxh3 {[%clk 0:01:06]} 25... Re8 {[%clk 0:02:08.9]} 26. Rf3 {[%clk 0:01:04.1]}
26... Rg7 {[%clk 0:02:05.8]} 27. Kh1 {[%clk 0:01:01.6]} 27... Bh4 {[%clk
0:01:55.1]} 28. Rg1 {[%clk 0:00:59.7]} 28... Re7 {[%clk 0:01:44.6]} 29. Rg4
{[%clk 0:00:32]} 29... Rxg4 {[%clk 0:01:26.6]} 30. hxg4 {[%clk 0:00:31.3]} 30...
Rg7 {[%clk 0:01:27.2]} 31. g5 {[%clk 0:00:31]} 31... fxg5 {[%clk 0:01:24.6]} 32.
Rh3 {[%clk 0:00:26]} 32... Bc8 {[%clk 0:01:23.3]} 33. Rh2 {[%clk 0:00:24.3]}
33... Bg4 {[%clk 0:01:22.4]} 34. Kg2 {[%clk 0:00:20.2]} 34... Bf5 {[%clk
0:00:59.4]} 35. Kf3 {[%clk 0:00:19.3]} 35... g4+ {[%clk 0:00:59.3]} 36. Ke2
{[%clk 0:00:18.7]} 36... g3 {[%clk 0:00:58.9]} 37. Rxh4 {[%clk 0:00:17.7]} 37...
g2 {[%clk 0:00:58.9]} 38. Nxd5 {[%clk 0:00:14.7]} 38... g1=Q {[%clk 0:00:57.7]}
39. Ne7+ {[%clk 0:00:13.7]} 39... Kf7 {[%clk 0:00:57.8]} 40. Nxf5 {[%clk
0:00:14]} 40... Rg2+ {[%clk 0:00:58]} 41. Kd3 {[%clk 0:00:12.6]} 41... Qb1+
{[%clk 0:00:55.2]} 42. Kc3 {[%clk 0:00:12.1]} 42... Qxb2+ {[%clk 0:00:51.5]} 43.
Kd3 {[%clk 0:00:11.4]} 43... Qc2# {[%clk 0:00:52]} 0-1

[Event "*** Titled Tuesday Blitz"]
[Site "Chess.com"]
[Date "2021.02.09"]
[Round "1"]
[White "Agibileg"]
[Black "IngOscarArdila"]
[Result "1-0"]
[WhiteElo "2504"]
[BlackElo "2152"]
[TimeControl "180+1"]
[EndTime "10:06:49 PST"]
[Termination "Agibileg won by resignation"]

1. d4 {[%clk 0:03:00.9]} 1... Nf6 {[%clk 0:02:59.6]} 2. c4 {[%clk 0:03:00.6]}
2... g6 {[%clk 0:02:58.9]} 3. Nc3 {[%clk 0:02:59.6]} 3... Bg7 {[%clk 0:02:59.5]}
4. e4 {[%clk 0:02:55.8]} 4... d6 {[%clk 0:03:00.4]} 5. Be2 {[%clk 0:02:55.6]}
5... O-O {[%clk 0:02:59.8]} 6. Nf3 {[%clk 0:02:54]} 6... Nbd7 {[%clk 0:03:00.4]}
7. O-O {[%clk 0:02:52.9]} 7... e5 {[%clk 0:03:00]} 8. Be3 {[%clk 0:02:52.9]}
8... exd4 {[%clk 0:02:59.7]} 9. Nxd4 {[%clk 0:02:46.1]} 9... Nc5 {[%clk
0:02:58.3]} 10. f3 {[%clk 0:02:43.7]} 10... a5 {[%clk 0:02:58.8]} 11. Qd2 {[%clk
0:02:39.8]} 11... Re8 {[%clk 0:02:55.7]} 12. Rfd1 {[%clk 0:02:17.8]} 12... Bd7
{[%clk 0:02:55.3]} 13. Nb3 {[%clk 0:02:13.5]} 13... Ne6 {[%clk 0:02:53.5]} 14.
Nd5 {[%clk 0:02:00.7]} 14... a4 {[%clk 0:02:37.6]} 15. Nd4 {[%clk 0:01:58.9]}
15... Nc5 {[%clk 0:02:25.8]} 16. Bg5 {[%clk 0:01:34.8]} 16... c6 {[%clk
0:02:10.5]} 17. Nxf6+ {[%clk 0:01:30]} 17... Bxf6 {[%clk 0:02:09.8]} 18. Bxf6
{[%clk 0:01:30.1]} 18... Qxf6 {[%clk 0:02:09.8]} 19. b4 {[%clk 0:01:24.1]} 19...
axb3 {[%clk 0:02:08.6]} 20. axb3 {[%clk 0:01:25]} 20... Rxa1 {[%clk 0:02:02.7]}
21. Rxa1 {[%clk 0:01:25.9]} 21... Ne6 {[%clk 0:02:02.2]} 22. Rd1 {[%clk
0:01:23.8]} 22... Nf4 {[%clk 0:01:40.8]} 23. Bf1 {[%clk 0:01:22.9]} 23... Bc8
{[%clk 0:01:35.8]} 24. g3 {[%clk 0:01:20.6]} 24... Ne6 {[%clk 0:01:30.6]} 25.
Nxe6 {[%clk 0:01:12.4]} 25... Bxe6 {[%clk 0:01:30.5]} 26. Kg2 {[%clk 0:01:06.1]}
26... d5 {[%clk 0:01:21]} 27. cxd5 {[%clk 0:01:05.3]} 27... cxd5 {[%clk
0:01:21.9]} 28. exd5 {[%clk 0:01:05.5]} 28... Bd7 {[%clk 0:01:18.8]} 29. Bd3
{[%clk 0:00:56.1]} 29... Qd4 {[%clk 0:01:11.6]} 30. Be4 {[%clk 0:00:50.3]} 30...
Qb6 {[%clk 0:01:05.1]} 31. b4 {[%clk 0:00:39.5]} 31... f5 {[%clk 0:01:04.6]} 32.
Bd3 {[%clk 0:00:36]} 32... Qd4 {[%clk 0:00:47.2]} 33. Bf1 {[%clk 0:00:33.5]}
33... Qe3 {[%clk 0:00:30.9]} 34. Qxe3 {[%clk 0:00:29.6]} 34... Rxe3 {[%clk
0:00:31.8]} 35. Rc1 {[%clk 0:00:29.2]} 35... Kf8 {[%clk 0:00:19]} 36. Rc7 {[%clk
0:00:29.3]} 36... Ke7 {[%clk 0:00:19.9]} 37. Bb5 {[%clk 0:00:28.7]} 37... Kd6
{[%clk 0:00:20.1]} 38. Rxd7+ {[%clk 0:00:29.1]} 1-0

[Event "*** Titled Tuesday Blitz"]
[Site "Chess.com"]
[Date "2021.02.09"]
[Round "1"]
[White "Deepweb2020"]
[Black "niki_2003"]
[Result "1-0"]
[WhiteElo "2483"]
[BlackElo "2062"]
[TimeControl "180+1"]
[EndTime "10:06:50 PST"]
[Termination "Deepweb2020 won by checkmate"]

1. d4 {[%clk 0:02:54.9]} 1... Nf6 {[%clk 0:02:59.5]} 2. c4 {[%clk 0:02:54.9]}
2... e6 {[%clk 0:02:59.7]} 3. g3 {[%clk 0:02:55]} 3... d5 {[%clk 0:02:59.8]} 4.
Nf3 {[%clk 0:02:55.1]} 4... Be7 {[%clk 0:02:59.2]} 5. Bg2 {[%clk 0:02:55.4]}
5... O-O {[%clk 0:02:59.2]} 6. O-O {[%clk 0:02:55.8]} 6... dxc4 {[%clk
0:02:55.6]} 7. Qc2 {[%clk 0:02:55.6]} 7... c6 {[%clk 0:02:55.2]} 8. Qxc4 {[%clk
0:02:54.6]} 8... b5 {[%clk 0:02:55.5]} 9. Qc2 {[%clk 0:02:51.7]} 9... Bb7 {[%clk
0:02:54.7]} 10. e4 {[%clk 0:02:45.6]} 10... Qb6 {[%clk 0:02:50.8]} 11. e5 {[%clk
0:02:11.2]} 11... Nd5 {[%clk 0:02:48.4]} 12. Nc3 {[%clk 0:02:10]} 12... Na6
{[%clk 0:02:39]} 13. a3 {[%clk 0:02:06.2]} 13... Rac8 {[%clk 0:02:32.3]} 14. b4
{[%clk 0:02:03.3]} 14... Nac7 {[%clk 0:02:26.3]} 15. Bg5 {[%clk 0:01:54.8]}
15... Rfe8 {[%clk 0:02:11.3]} 16. Bxe7 {[%clk 0:01:51.8]} 16... Rxe7 {[%clk
0:02:10.3]} 17. Ng5 {[%clk 0:01:51]} 17... g6 {[%clk 0:02:05.5]} 18. Nce4 {[%clk
0:01:51]} 18... Kg7 {[%clk 0:01:58.3]} 19. Nd6 {[%clk 0:01:45.5]} 19... Rd8
{[%clk 0:01:49.6]} 20. Rfc1 {[%clk 0:01:42.7]} 20... Ba8 {[%clk 0:01:22.1]} 21.
h4 {[%clk 0:01:17]} 21... Qxd4 {[%clk 0:01:18.6]} 22. Nf3 {[%clk 0:01:10.7]}
22... Qb6 {[%clk 0:00:58.1]} 23. h5 {[%clk 0:01:10.5]} 23... Ne8 {[%clk
0:00:57.2]} 24. Ne4 {[%clk 0:01:00.4]} 24... Nec7 {[%clk 0:00:18.8]} 25. Qd2
{[%clk 0:00:58.5]} 25... Ree8 {[%clk 0:00:16.4]} 26. h6+ {[%clk 0:00:54.9]}
26... Kg8 {[%clk 0:00:16.3]} 27. Qg5 {[%clk 0:00:54.3]} 27... Bb7 {[%clk
0:00:14.1]} 28. Nf6+ {[%clk 0:00:52.4]} 28... Kh8 {[%clk 0:00:09.6]} 29. Re1
{[%clk 0:00:51.3]} 29... Re7 {[%clk 0:00:02.2]} 30. Red1 {[%clk 0:00:50.8]}
30... Ne8 {[%clk 0:00:02.5]} 31. Nxd5 {[%clk 0:00:48.2]} 31... exd5 {[%clk
0:00:02.1]} 32. Qxe7 {[%clk 0:00:47.5]} 32... Nc7 {[%clk 0:00:03]} 33. Qf6+
{[%clk 0:00:44.5]} 33... Kg8 {[%clk 0:00:02.8]} 34. Qxd8+ {[%clk 0:00:44.4]}
34... Ne8 {[%clk 0:00:01.9]} 35. Qxe8# {[%clk 0:00:44.4]} 1-0

[Event "*** Titled Tuesday Blitz"]
[Site "Chess.com"]
[Date "2021.02.09"]
[Round "1"]
[White "dopolian"]
[Black "kirillshevchenko"]
[Result "0-1"]
[WhiteElo "2419"]
[BlackElo "2824"]
[TimeControl "180+1"]
[EndTime "10:06:52 PST"]
[Termination "kirillshevchenko won by resignation"]

1. Nf3 {[%clk 0:02:57.6]} 1... Nf6 {[%clk 0:02:58.9]} 2. c4 {[%clk 0:02:57]}
2... d6 {[%clk 0:02:57.8]} 3. b3 {[%clk 0:02:57.3]} 3... e5 {[%clk 0:02:56.9]}
4. Bb2 {[%clk 0:02:54.7]} 4... c5 {[%clk 0:02:57]} 5. d3 {[%clk 0:02:51.9]} 5...
Nc6 {[%clk 0:02:55.6]} 6. e3 {[%clk 0:02:51.9]} 6... g6 {[%clk 0:02:54.4]} 7.
Be2 {[%clk 0:02:45]} 7... Bg7 {[%clk 0:02:54.3]} 8. O-O {[%clk 0:02:43.9]} 8...
O-O {[%clk 0:02:54.5]} 9. d4 {[%clk 0:02:43.9]} 9... e4 {[%clk 0:02:52.2]} 10.
Nfd2 {[%clk 0:02:43.4]} 10... Bf5 {[%clk 0:02:46.4]} 11. a3 {[%clk 0:02:31]}
11... h5 {[%clk 0:02:43.8]} 12. d5 {[%clk 0:02:29.4]} 12... Nb8 {[%clk
0:02:20.5]} 13. Nc3 {[%clk 0:02:26.4]} 13... Re8 {[%clk 0:02:20.5]} 14. Re1
{[%clk 0:02:22.8]} 14... Nbd7 {[%clk 0:02:20.4]} 15. Nf1 {[%clk 0:02:12.1]}
15... h4 {[%clk 0:02:19.4]} 16. f4 {[%clk 0:01:48.7]} 16... exf3 {[%clk
0:02:01.2]} 17. gxf3 {[%clk 0:01:36.9]} 17... Bh3 {[%clk 0:01:53.8]} 18. f4
{[%clk 0:01:24.8]} 18... Qa5 {[%clk 0:00:58.4]} 19. Bf3 {[%clk 0:01:08.9]} 19...
Re7 {[%clk 0:00:47]} 20. Qd2 {[%clk 0:01:00.5]} 20... Rae8 {[%clk 0:00:46.1]}
21. Nb5 {[%clk 0:00:40.1]} 21... Qxd2 {[%clk 0:00:37.4]} 22. Nxd2 {[%clk
0:00:41]} 22... Rxe3 {[%clk 0:00:37.9]} 23. Rxe3 {[%clk 0:00:39.3]} 23... Rxe3
{[%clk 0:00:38.8]} 24. Nxd6 {[%clk 0:00:33.1]} 24... Rd3 {[%clk 0:00:38.6]} 25.
Rd1 {[%clk 0:00:25.9]} 25... Nxd5 {[%clk 0:00:26.9]} 26. cxd5 {[%clk 0:00:08.2]}
26... Bxb2 {[%clk 0:00:25.9]} 27. N2c4 {[%clk 0:00:07.5]} 27... Bd4+ {[%clk
0:00:24.3]} 28. Kh1 {[%clk 0:00:03.4]} 28... Rxf3 {[%clk 0:00:24.4]} 29. Nxb7
{[%clk 0:00:02.2]} 29... Rf2 {[%clk 0:00:23.2]} 30. d6 {[%clk 0:00:01.8]} 30...
Bg2+ {[%clk 0:00:22.7]} 0-1